bitfinex/quotes_ETHUSD_20250807
["timestamp","ask_amount","ask_price","bid_price","bid_amount"]
[1754542567741,31.20180712,3665.0,3664.9,0.002]
[1754542569727,30.30560712,3665.0,3664.9,0.002]
[1754542570160,27.57709416,3665.0,3664.9,0.002]
[1754542572796,13.80144407,3665.0,3664.9,0.002]
[1754542572940,7.57140521,3665.0,3664.9,0.4249]
[1754542573279,15.24540521,3665.0,3664.9,0.4249]
[1754542573573,12.24540521,3665.0,3664.9,0.4249]
[1754542573740,15.24540521,3665.0,3664.9,0.4249]
[1754542574067,21.80540521,3665.0,3664.9,0.002]
[1754542578670,21.80440521,3665.0,3664.9,0.4249]
[1754542582013,21.80440521,3665.0,3664.9,0.002]
[1754542583596,22.27570521,3665.0,3664.9,0.002]
[1754542584791,22.76990521,3665.0,3664.9,0.002]
[1754542584994,25.49856707,3665.0,3664.9,0.002]
[1754542587411,25.49871008,3665.0,3664.9,0.002]
[1754542588212,25.49871008,3665.0,3664.9,0.002]
[1754542590322,24.53322706,3665.0,3664.9,0.002]
[1754542590491,17.6815652,3665.0,3664.9,0.002]
[1754542590689,17.6815652,3665.0,3664.9,0.4249]
[1754542590690,21.2545652,3665.0,3664.9,0.4249]
[1754542591078,21.8045652,3665.0,3664.9,0.4249]
[1754542591792,21.8045652,3665.0,3664.9,3.15348741]
[1754542592123,21.8045652,3665.0,3664.9,0.4249]
[1754542592827,17.6815652,3665.0,3664.9,3.469043]
[1754542593013,21.5498,3665.0,3664.9,3.469043]
[1754542594688,21.5498,3665.0,3664.9,0.74045559]
[1754542594888,21.5498,3665.0,3664.9,0.4249]
[1754542595093,21.5498,3665.0,3664.9,0.002]
[1754542595938,22.76998317,3665.0,3664.9,0.002]
[1754542596318,22.76998444,3665.0,3664.9,0.002]
[1754542596990,22.27578444,3665.0,3664.9,0.002]
[1754542597194,21.80448444,3665.0,3664.9,0.002]
[1754542598829,21.80448444,3665.0,3664.9,0.4249]
[1754542599638,21.80448444,3665.0,3664.9,3.15348741]
[1754542600165,21.80448444,3665.0,3664.9,3.74190886]
[1754542600469,17.4268,3665.0,3664.9,3.74190886]
[1754542600680,21.5498,3665.0,3664.9,3.74190886]
[1754542602063,16.8768,3665.0,3664.9,3.74190886]
[1754542602266,20.9998,3665.0,3664.9,3.74190886]
[1754542602775,17.863,3665.0,3664.9,3.74190886]
[1754542607289,17.862,3665.0,3664.9,3.74190886]
[1754542607484,7.18,3665.0,3664.9,3.87870886]
[1754542607689,11.302,3665.0,3664.9,3.87870886]
[1754542608367,4.122,3665.0,3664.9,3.87870886]
[1754542613170,4.122,3665.0,3664.9,3.45580886]
[1754542614280,4.122,3665.0,3664.9,3.87870886]
[1754542615428,4.122,3665.0,3664.9,3.45580886]
[1754542619514,4.5577,3665.0,3664.9,3.45580886]
[1754542619985,5.0269,3665.0,3664.9,2.73058741]
[1754542625120,4.122,3665.0,3664.9,2.73058741]
[1754542627389,4.5577,3665.0,3664.9,2.73058741]
[1754542628089,5.0269,3665.0,3664.9,2.73058741]
[1754542628724,4.122,3665.0,3664.9,2.73058741]
[1754542629028,5.0269,3665.0,3664.9,2.73058741]
[1754542630303,15.8692133,3665.0,3664.9,0.002]
[1754542630508,3.0,3664.9,3664.8,0.002]
[1754542630711,4.15959596,3664.9,3664.8,0.002]
[1754542630908,6.62208689,3664.9,3664.8,0.002]
[1754542632194,6.36739093,3664.9,3664.8,0.002]
[1754542632412,6.6219742,3664.9,3664.8,0.002]
[1754542632656,6.7587742,3664.9,3664.8,0.002]
[1754542632796,6.7587742,3664.9,3664.8,2.73066186]
[1754542632797,4.84628327,3664.9,3664.8,2.73066186]
[1754542633307,0.9049,3665.1,3665.0,2.72851296]
[1754542633507,8.5769,3665.1,3665.0,2.72851296]
[1754542633714,8.7137,3665.1,3665.0,2.72851296]
[1754542641835,4.5917,3665.1,3665.0,2.72851296]
[1754542642024,8.7137,3665.1,3665.0,2.72851296]
[1754542642533,7.8088,3665.1,3665.0,2.72851296]
[1754542642934,8.7223,3665.1,3665.0,2.72851296]
[1754542643941,0.1368,3665.1,3665.0,2.72851296]
[1754542644237,0.001,3665.2,3665.1,2.72843851]
[1754542644453,4.123,3665.2,3665.1,2.72843851]
[1754542644810,4.123,3665.2,3665.1,3.15133851]
[1754542644953,4.123,3665.2,3665.1,2.72843851]
[1754542646556,4.123,3665.2,3665.1,3.15133851]
[1754542646853,4.123,3665.2,3665.1,4.08093446]
[1754542647724,4.123,3665.2,3665.1,3.65803446]
[1754542648166,0.001,3665.2,3665.1,4.08093446]
[1754542648467,4.122,3665.2,3665.1,3.65803446]
[1754542648763,0.001,3665.2,3665.1,3.65803446]
[1754542648919,4.122,3665.2,3665.1,4.08093446]
[1754542649115,4.122,3665.2,3665.1,4.08323446]
[1754542649116,0.73417123,3665.2,3665.1,4.08323446]
[1754542649321,0.001,3665.6,3665.5,2.72814077]
[1754542649566,4.122,3665.6,3665.5,3.41057913]
[1754542652424,0.001,3665.6,3665.5,3.41057913]
[1754542652630,4.122,3665.6,3665.5,3.83347913]
[1754542654145,4.122,3665.6,3665.1,2.73073851]
[1754542654329,4.122,3665.6,3665.5,2.72814077]
[1754542654742,4.122,3665.6,3665.5,2.86494077]
[1754542654961,4.122,3665.6,3665.5,3.42425907]
[1754542656970,0.001,3665.6,3665.5,3.42425907]
[1754542657169,4.122,3665.6,3665.5,3.42425907]
[1754542660673,4.5787,3665.6,3665.5,3.42425907]
[1754542661138,5.0355,3665.6,3665.5,3.42425907]
[1754542661410,5.0355,3665.6,3665.5,2.72814077]
[1754542672930,4.121,3665.6,3665.5,2.72814077]
[1754542673623,0.137,3665.9,3665.8,2.7279175]
[1754542673824,4.121,3665.9,3665.8,2.7279175]
[1754542674015,5.0652,3665.9,3665.8,2.8639175]
[1754542674394,5.0652,3665.9,3665.8,2.7279175]
[1754542678139,4.121,3665.9,3665.8,2.7279175]
[1754542678442,5.0652,3665.9,3665.8,2.7279175]
[1754542681363,0.001,3665.9,3665.8,2.7279175]
[1754542681510,1e-08,3666.0,3665.9,2.72784309]
[1754542681835,4.12200001,3666.0,3665.9,2.72784309]
[1754542683250,0.001,3666.3,3666.2,2.72761987]
[1754542683451,0.001,3666.3,3666.2,2.86361987]
[1754542683656,0.001,3666.3,3666.2,3.42275394]
[1754542683807,4.123,3666.3,3666.2,3.42275394]
[1754542686451,5.0672,3666.3,3666.2,3.42275394]
[1754542691636,4.6134,3666.3,3666.2,3.42275394]
[1754542692025,4.123,3666.3,3666.2,3.42275394]
[1754542695161,0.001,3666.7,3666.3,2.72754548]
[1754542695338,0.001,3666.7,3666.6,2.72732231]
[1754542695540,0.001,3666.7,3666.6,2.86332231]
[1754542695839,4.12,3666.7,3666.6,2.86332231]
[1754542696135,4.5738,3666.7,3666.6,2.86332231]
[1754542697267,5.0642,3666.7,3666.6,2.86332231]
[1754542697789,1e-08,3666.7,3666.6,3.55783776]
[1754542698073,1e-08,3667.0,3666.9,2.72709918]
[1754542698425,1e-08,3667.0,3666.9,2.86309918]
[1754542698624,1e-08,3667.0,3666.9,3.19176713]
[1754542703028,4.12,3667.1,3666.9,3.19176713]
[1754542703225,1e-08,3667.4,3667.3,2.72680173]
[1754542703625,0.001,3668.2,3667.6,2.72653158]
[1754542703871,4.121,3667.9,3667.8,2.72643001]
[1754542704765,0.001,3667.9,3667.8,2.72643001]
[1754542704964,0.001,3667.9,3667.8,3.20193001]
[1754542705179,0.001,3667.9,3667.8,2.72643001]
[1754542705931,0.91,3667.9,3667.8,2.72643001]
[1754542712491,0.4555,3667.9,3667.8,2.72643001]
[1754542712694,0.001,3667.9,3667.8,2.72643001]
[1754542713370,0.91,3667.9,3667.8,2.72643001]
[1754542714892,0.001,3667.9,3667.8,2.72643001]
[1754542715101,0.001,3667.9,3667.8,3.20193001]
[1754542715593,0.001,3667.9,3667.8,3.80837617]
[1754542716293,0.001,3667.9,3667.8,3.94437617]
[1754542717897,0.001,3667.9,3667.8,3.46887617]
[1754542718065,0.001,3667.9,3667.8,3.94437617]
[1754542723384,0.001,3667.9,3667.8,3.46887617]
[1754542723933,0.001,3667.9,3667.8,3.94437617]
[1754542724282,1e-08,3667.9,3667.8,3.94437617]
[1754542724482,1e-08,3668.0,3667.9,2.72635568]
[1754542724684,1e-08,3668.0,3667.9,3.14309292]
[1754542724884,1e-08,3668.0,3667.9,3.61859292]
[1754542725623,1e-08,3668.0,3667.9,7.73659292]
[1754542728826,1e-08,3668.2,3668.1,2.72620702]
[1754542729125,1e-08,3668.2,3668.1,3.33265318]
[1754542729304,1e-08,3668.2,3668.1,3.46865318]
[1754542729485,1e-08,3668.2,3668.1,7.92615318]
[1754542729685,1e-08,3668.2,3668.1,8.06215318]
[1754542732513,0.001,3668.4,3668.2,2.7261327]
[1754542732714,0.001,3668.4,3668.3,3.14279563]
[1754542732892,0.001,3668.4,3668.3,3.76699563]
[1754542739415,0.001,3668.4,3668.3,3.27879563]
[1754542741437,0.001,3668.4,3668.3,3.76699563]
[1754542743234,1e-08,3668.4,3668.3,4.23245621]
[1754542744134,1e-08,3668.4,3668.3,3.79425621]
[1754542744935,1e-08,3668.4,3668.3,3.76699563]
[1754542745550,1e-08,3668.4,3668.3,3.27879563]
[1754542745704,1e-08,3668.4,3668.3,7.39579563]
[1754542745705,0.44990001,3668.4,3668.3,7.39579563]
[1754542746022,0.93670001,3668.4,3668.3,7.39579563]
[1754542746211,0.93670001,3668.4,3668.3,3.27879563]
[1754542746623,0.93670001,3668.4,3668.3,6.97905839]
[1754542746810,10.58942331,3668.4,3668.3,2.72605839]
[1754542747014,10.58942331,3668.4,3667.9,0.002]
[1754542747213,9.6527233,3668.1,3668.0,2.72628135]
[1754542747452,10.5894233,3668.1,3668.0,2.72628135]
[1754542747813,0.9367,3668.1,3668.0,2.72628135]
[1754542751548,10.5894233,3668.1,3668.0,2.72628135]
[1754542753949,10.5894233,3668.1,3667.9,2.72828892]
[1754542754155,0.9367,3668.0,3667.9,0.002]
[1754542754664,0.9367,3668.0,3667.9,2.72835568]
[1754542754836,5.0537,3668.0,3667.9,2.72835568]
[1754542764383,5.0537,3668.0,3667.9,0.002]
[1754542764543,5.6037,3668.0,3667.9,0.002]
[1754542764879,7.14294233,3668.0,3667.9,0.002]
[1754542766244,5.6037,3668.0,3667.9,0.002]
[1754542766781,5.6037,3668.0,3667.9,2.72835568]
[1754542766986,5.6037,3668.0,3667.9,0.002]
[1754542767283,5.6037,3668.0,3667.9,2.72835568]
[1754542768184,5.6037,3668.0,3667.9,0.002]
[1754542768386,5.6037,3668.0,3667.9,2.72835568]
[1754542768885,5.6037,3668.0,3667.9,0.002]
[1754542769092,5.6037,3668.0,3667.9,2.72835568]
[1754542769892,4.667,3668.0,3667.9,2.72835568]
[1754542770657,5.0963,3668.0,3667.9,2.72835568]
[1754542771070,5.5644,3668.0,3667.9,2.72835568]
[1754542771269,5.5644,3668.0,3667.9,0.002]
[1754542771692,5.5644,3668.0,3667.9,2.72835568]
[1754542772190,4.667,3668.0,3667.9,2.72835568]
[1754542772794,5.0963,3668.0,3667.9,2.72835568]
[1754542772980,4.667,3668.0,3667.9,3.21255568]
[1754542773289,4.667,3668.0,3667.9,2.72835568]
[1754542773490,4.117,3668.0,3667.9,2.72835568]
[1754542773786,4.117,3668.0,3667.9,3.21255568]
[1754542773969,4.117,3668.0,3667.9,2.72835568]
[1754542776464,5.0144,3668.0,3667.9,2.72835568]
[1754542781414,4.5463,3668.0,3667.9,2.72835568]
[1754542782003,4.117,3668.0,3667.9,2.72835568]
[1754542783907,5.0144,3668.0,3667.9,2.72835568]
[1754542786283,5.0144,3668.0,3667.9,0.002]
[1754542786486,5.5644,3668.0,3667.9,0.002]
[1754542786692,7.09971233,3668.0,3667.9,0.002]
[1754542787391,7.09971233,3668.0,3667.9,2.72835568]
[1754542787392,5.5644,3668.0,3667.9,2.72835568]
[1754542787585,15.2171233,3668.0,3667.9,2.72835568]
[1754542790493,15.2171233,3668.0,3667.9,0.002]
[1754542792823,15.47269875,3668.0,3667.9,0.002]
[1754542796711,10.45829875,3668.0,3667.9,2.72835568]
[1754542796890,14.57629875,3668.0,3667.9,2.72835568]
[1754542799141,14.57629875,3668.0,3667.9,0.002]
[1754542800312,14.57629875,3668.0,3667.9,2.72835568]
[1754542800514,14.3207233,3668.0,3667.9,3.18875568]
[1754542801033,13.7707233,3668.0,3667.9,3.18875568]
[1754542802046,13.7707233,3668.0,3667.9,2.72835568]
[1754542802238,14.02651814,3668.0,3667.9,0.002]
[1754542802424,14.46941814,3668.0,3667.9,0.002]
[1754542802625,14.96705074,3668.0,3667.9,0.002]
[1754542803155,14.96705273,3668.0,3667.9,0.002]
[1754542803323,5.31432943,3668.0,3667.9,2.72835568]
[1754542803645,14.96705273,3668.0,3667.9,2.72835568]
[1754542803814,14.96705016,3668.0,3667.9,2.72835568]
[1754542804014,15.51705016,3668.0,3667.9,0.002]
[1754542804641,14.57655016,3668.0,3667.9,0.002]
[1754542804824,14.57655016,3668.0,3667.9,3.18875568]
[1754542805216,14.57655016,3668.0,3667.9,0.002]
[1754542805546,15.01945016,3668.0,3667.9,0.002]
[1754542805753,15.51703876,3668.0,3667.9,0.002]
[1754542806248,15.93075382,3668.0,3667.9,0.002]
[1754542806456,0.55,3667.9,3667.5,0.002]
[1754542806606,9.7887233,3667.6,3667.5,0.002]
[1754542806809,4.253,3667.6,3667.5,2.72865303]
[1754542807049,4.253,3667.6,3667.5,3.18905303]
[1754542808842,9.6527233,3668.0,3667.9,2.72635568]
[1754542809047,14.02542383,3668.0,3667.9,3.18675568]
[1754542809245,14.16142383,3668.0,3667.7,2.72648707]
[1754542809444,13.9057233,3668.0,3667.7,2.72648707]
[1754542809663,0.9405,3667.9,3667.8,2.72643001]
[1754542810214,0.4429,3667.9,3667.8,2.72643001]
[1754542810416,13.9057233,3668.0,3667.9,2.72635568]
[1754542810817,13.9057233,3668.0,3667.8,2.726421]
[1754542811016,14.8462233,3668.0,3667.8,2.726421]
[1754542811950,13.9057233,3668.0,3667.9,3.18675568]
[1754542812252,9.7887233,3668.0,3667.9,3.18675568]
[1754542812438,13.9057233,3668.0,3667.9,3.18675568]
[1754542812952,13.9057233,3668.0,3667.5,2.72859693]
[1754542813150,0.4429,3667.9,3667.8,2.72643001]
[1754542813456,9.6527233,3667.9,3667.8,2.72643001]
[1754542813659,9.6527233,3667.9,3667.8,3.18683001]
[1754542817670,13.7697233,3667.9,3667.8,3.18683001]
[1754542820128,13.7697233,3667.9,3667.8,2.72643001]
[1754542820329,14.6733233,3667.9,3667.7,2.72649047]
[1754542820520,0.4455,3667.8,3667.7,2.72649047]
[1754542820919,0.9036,3667.8,3667.5,0.002]
[1754542821154,9.6527233,3667.6,3667.5,2.72858613]
[1754542824571,9.6527233,3667.6,3667.5,3.21008613]
[1754542825764,9.6527233,3667.6,3667.5,2.72858613]
[1754542827467,4.117,3667.7,3667.6,2.72657868]
[1754542827837,4.117,3667.7,3667.6,3.20807868]
[1754542829571,4.117,3667.7,3667.6,2.72657868]
[1754542829769,9.6527233,3668.1,3668.0,2.72622143]
[1754542830066,13.9057233,3668.1,3667.8,3.20785948]
[1754542830285,0.9036,3668.0,3667.8,2.72635948]
[1754542830439,5.0206,3667.9,3667.8,2.72635948]
[1754542830641,4.117,3667.9,3667.8,2.72635948]
[1754542830971,4.117,3667.9,3667.8,3.20785948]
[1754542834848,3.0,3668.2,3668.0,2.72628135]
[1754542835061,1e-08,3668.4,3668.3,2.72605839]
[1754542835262,4.11700001,3668.4,3668.3,2.72605839]
[1754542835676,4.11700001,3668.4,3668.3,3.20755839]
[1754542836872,4.11700001,3668.4,3668.3,2.72605839]
[1754542837183,5.02060001,3668.4,3668.3,2.72605839]
[1754542841068,5.02060001,3668.4,3668.1,2.86213406]
[1754542841264,9.6527233,3668.2,3668.1,0.136]
[1754542841488,14.4557233,3668.2,3667.8,2.72641505]
[1754542841694,0.9036,3668.1,3667.9,2.72629429]
[1754542841883,4.117,3668.0,3667.9,2.72629429]
[1754542842189,4.117,3668.0,3667.9,3.20779429]
[1754542842394,4.117,3668.0,3667.9,4.29600297]
[1754542842595,4.117,3668.0,3667.9,3.84620297]
[1754542843782,4.117,3668.0,3667.9,2.72629429]
[1754542843958,5.0206,3668.0,3667.9,2.72629429]
[1754542844362,4.5625,3668.0,3667.9,2.72629429]
[1754542844684,4.117,3668.0,3667.9,2.72629429]
[1754542845097,5.0206,3668.0,3667.9,2.72629429]
[1754542848299,4.5625,3668.0,3667.9,2.72629429]
[1754542848866,5.0206,3668.0,3667.7,0.136]
[1754542849071,10.5563233,3667.9,3667.8,2.72641646]
[1754542849272,10.0982233,3667.9,3667.8,2.72641646]
[1754542849481,0.4455,3667.9,3667.8,2.72641646]
[1754542849680,4.117,3668.0,3667.9,2.72635568]
[1754542850079,0.136,3668.1,3668.0,2.72628135]
[1754542850281,4.117,3668.1,3668.0,3.20898135]
[1754542852003,1e-08,3668.4,3668.2,2.7261327]
[1754542852205,1e-08,3668.4,3668.3,2.72605839]
[1754542852387,4.11700001,3668.4,3668.3,2.72605839]
[1754542853409,4.58710001,3668.4,3668.3,2.72605839]
[1754542853706,5.06420001,3668.4,3668.3,2.72605839]
[1754542853905,5.06420001,3668.4,3668.2,2.7261184]
[1754542854082,9.6527233,3668.3,3668.2,2.7261184]
[1754542854276,10.5999233,3668.3,3668.2,2.7261184]
[1754542854706,0.9472,3668.3,3668.2,2.7261184]
[1754542856707,0.9472,3668.3,3668.0,2.72627549]
[1754542856908,14.7169233,3668.2,3668.1,2.72619715]
[1754542858190,14.2398233,3668.2,3668.1,2.72619715]
[1754542858389,14.7169233,3668.2,3668.1,2.72619715]
[1754542858602,14.2398233,3668.2,3668.1,2.72619715]
[1754542858787,13.7697233,3668.2,3668.1,3.20889715]
[1754542859608,4.117,3668.2,3668.1,3.20889715]
[1754542859807,0.47710001,3668.4,3668.1,3.20889715]
[1754542859808,1e-08,3668.4,3668.3,2.72605839]
[1754542859990,4.25300001,3668.4,3668.3,2.72605839]
[1754542860392,4.25300001,3668.4,3668.3,3.20875839]
[1754542860607,4.72310001,3668.4,3668.2,2.72611615]
[1754542861112,4.72310001,3668.4,3668.3,2.72605839]
[1754542861278,4.72310001,3668.4,3668.2,2.72612536]
[1754542861480,4.72310001,3668.4,3668.1,0.4827]
[1754542861481,4.25300001,3668.4,3668.1,2.72619338]
[1754542861774,0.9472,3668.3,3668.1,2.72619338]
[1754542861974,4.116,3668.2,3668.0,2.72627014]
[1754542862477,0.9472,3668.1,3668.0,2.72627014]
[1754542863115,0.4701,3668.1,3668.0,2.72627014]
[1754542863412,4.116,3668.2,3668.1,2.72620702]
[1754542863810,4.116,3668.2,3668.1,3.20890702]
[1754542865415,4.116,3668.2,3668.1,3.84810474]
[1754542872137,4.117,3668.2,3668.1,3.36540474]
[1754542872441,4.117,3668.2,3668.1,3.84810474]
[1754542874962,4.117,3668.2,3668.1,3.98410474]
[1754542877237,0.001,3668.2,3668.1,3.98410474]
[1754542878350,0.001,3668.2,3668.1,2.86220702]
[1754542880964,0.4359,3668.2,3668.1,2.86220702]
[1754542881542,0.001,3668.2,3668.1,2.86220702]
[1754542881753,10.5778233,3668.2,3668.1,2.86220702]
[1754542882379,10.5778233,3668.2,3668.1,2.72620702]
[1754542882881,0.9251,3668.2,3668.1,2.72620702]
[1754542887086,0.4359,3668.2,3668.1,2.72620702]
[1754542887699,0.001,3668.2,3668.1,2.72620702]
[1754542887861,4.117,3668.2,3668.1,2.72620702]
[1754542891490,4.117,3668.2,3668.1,3.21720702]
[1754542892681,4.117,3668.2,3668.1,2.72620702]
[1754542894096,4.5519,3668.2,3668.1,2.72620702]
[1754542895497,4.117,3668.2,3668.1,2.72620702]
[1754542897377,5.0411,3668.2,3668.1,2.72620702]
[1754542902820,4.117,3668.2,3668.1,2.72620702]
[1754542903116,4.117,3668.2,3668.1,3.21720702]
[1754542907007,4.117,3668.2,3668.1,2.72620702]
[1754542907328,5.0411,3668.2,3668.1,2.72620702]
[1754542912258,5.0411,3668.2,3667.9,0.138]
[1754542912462,0.9165,3668.1,3668.0,2.72627162]
[1754542913461,0.4594,3668.1,3667.9,0.138]
[1754542913662,5.07875,3668.0,3667.9,0.002]
[1754542913845,5.53585,3668.0,3667.9,0.002]
[1754542917067,6.08585,3668.0,3667.9,0.002]
[1754542917280,11.81213135,3668.0,3667.9,0.002]
[1754542917986,9.08585,3668.0,3667.9,0.002]
[1754542920502,8.16935,3668.0,3667.9,0.002]
[1754542920647,9.08585,3668.0,3667.9,0.002]
[1754542920981,3.4594,3668.0,3667.9,0.002]
[1754542921180,0.137,3668.2,3668.0,2.72625216]
[1754542921383,4.116,3668.1,3668.0,2.72625216]
[1754542921950,4.116,3668.1,3668.0,3.65825216]
[1754542922700,0.001,3668.2,3668.1,2.72620702]
[1754542923036,4.117,3668.2,3668.1,3.87835294]
[1754542924756,4.117,3668.2,3668.1,2.72620702]
[1754542924945,5.0335,3668.2,3668.0,2.72627001]
[1754542925149,0.9165,3668.1,3668.0,2.72627001]
[1754542926566,0.9165,3668.1,3667.9,0.002]
[1754542926895,5.0325,3668.0,3667.9,0.002]
[1754542927852,5.0325,3668.0,3667.9,2.72828588]
[1754542928758,4.5754,3668.0,3667.9,2.72828588]
[1754542929398,4.116,3668.0,3667.9,2.72828588]
[1754542932678,4.116,3668.0,3667.9,3.22818588]
[1754542933327,4.116,3668.0,3667.9,2.72828588]
[1754542934510,4.116,3668.0,3667.9,3.22818588]
[1754542940220,4.116,3668.0,3667.9,2.72828588]
[1754542940386,5.0166,3668.0,3667.9,2.72828588]
[1754542941623,14.6693233,3668.0,3667.9,2.72828588]
[1754542941845,16.15308586,3668.0,3667.9,2.72828588]
[1754542942140,4.5463,3668.0,3667.9,2.72828588]
[1754542942297,4.116,3668.0,3667.9,2.72828588]
[1754542944094,4.5463,3668.0,3667.9,2.72828588]
[1754542944298,5.0166,3668.0,3667.9,2.72828588]
[1754542947514,4.5463,3668.0,3667.9,2.72828588]
[1754542947918,4.116,3668.0,3667.9,2.72828588]
[1754542948313,4.116,3668.0,3667.9,3.18358588]
[1754542951617,0.4713,3668.2,3668.1,2.72620702]
[1754542951817,4.5863,3668.2,3668.1,2.72620702]
[1754542952017,5.0166,3668.2,3668.1,2.72620702]
[1754542958079,3.55,3668.1,3667.9,0.002]
[1754542958240,17.3177233,3668.0,3667.9,0.002]
[1754542958576,18.3543233,3668.0,3667.9,0.002]
[1754542960759,3.136,3668.0,3667.9,2.72835568]
[1754542961096,3.0,3668.0,3667.9,3.18365568]
[1754542961299,7.115,3668.0,3667.9,3.18365568]
[1754542962109,4.115,3668.0,3667.9,3.18365568]
[1754542968231,4.115,3668.0,3667.9,2.72835568]
[1754542970430,4.115,3668.0,3667.9,0.002]
[1754542970431,5.0541,3668.0,3667.9,0.002]
[1754542971030,5.0541,3668.0,3667.9,2.72835568]
[1754542971636,5.6041,3668.0,3667.9,0.002]
[1754542971838,5.7401,3668.0,3667.9,0.002]
[1754542972538,5.7401,3668.0,3667.9,2.72835568]
[1754542975113,5.256,3668.0,3667.9,2.72835568]
[1754542976517,4.801,3668.0,3667.9,2.72835568]
[1754542978351,5.256,3668.0,3667.9,2.72835568]
[1754542978849,4.115,3668.0,3667.9,2.72835568]
[1754542979122,4.115,3668.0,3667.9,3.21085568]
[1754542980279,4.115,3668.0,3667.9,2.72835568]
[1754542980479,5.0551,3668.0,3667.9,2.72835568]
[1754542980687,4.571,3668.0,3667.9,2.72835568]
[1754542981361,4.116,3668.0,3667.9,2.72835568]
[1754542983491,4.115,3668.0,3667.9,2.72835568]
[1754542983789,4.115,3668.0,3667.9,3.21085568]
[1754542992372,5.0541,3668.0,3667.9,2.72835568]
[1754543002671,5.0541,3668.0,3667.9,0.002]
[1754543003321,4.115,3668.0,3667.9,0.002]
[1754543003483,16.61149563,3668.0,3667.9,0.002]
[1754543003806,18.3570233,3668.0,3667.9,0.002]
[1754543012615,21.08330465,3668.0,3667.9,0.002]
[1754543012916,6.27657868,3667.6,3667.5,0.002]
[1754543013236,20.17930198,3667.6,3667.5,0.002]
[1754543013412,23.49506201,3667.6,3667.5,0.002]
[1754543013789,23.60437901,3667.6,3667.5,0.002]
[1754543027033,6.20777703,3667.6,3667.5,0.002]
[1754543027231,4.251,3667.6,3667.5,0.4896]
[1754543027472,7.801,3667.6,3667.5,0.9314]
[1754543028726,7.801,3667.6,3667.5,0.4896]
[1754543029245,7.801,3667.6,3667.5,0.002]
[1754543029426,13.17625101,3667.6,3667.5,0.002]
[1754543030329,13.49177236,3667.6,3667.5,0.002]
[1754543034253,13.76497236,3667.6,3667.5,0.002]
[1754543034434,6.27665303,3667.5,3667.4,0.002]
[1754543034633,7.05887438,3667.5,3667.4,0.002]
[1754543034883,9.32083624,3667.5,3667.4,0.002]
[1754543035183,10.24403624,3667.5,3667.4,0.002]
[1754543037138,10.35337124,3667.5,3667.4,0.002]
[1754543038171,17.53337124,3667.5,3667.4,0.002]
[1754543040661,16.29464989,3667.5,3667.4,0.002]
[1754543040972,20.40964989,3667.5,3667.4,0.4645]
[1754543041376,15.74464989,3667.5,3667.4,0.4645]
[1754543041673,17.70765303,3667.5,3667.4,0.9121]
[1754543042688,17.70765303,3667.5,3667.4,0.4645]
[1754543043372,17.70765303,3667.5,3667.4,0.002]
[1754543043557,17.70765303,3667.5,3667.4,0.4645]
[1754543045975,17.70765303,3667.5,3667.4,0.002]
[1754543046162,20.43631489,3667.5,3667.4,0.002]
[1754543046568,21.35951489,3667.5,3667.4,0.002]
[1754543046880,20.90301489,3667.5,3667.4,0.002]
[1754543047043,20.43631489,3667.5,3667.4,0.002]
[1754543048377,20.43631489,3667.5,3667.4,0.4645]
[1754543050670,20.43631489,3667.5,3667.4,0.002]
[1754543051073,20.43631489,3667.5,3667.4,0.4645]
[1754543051565,20.43631489,3667.5,3667.4,0.002]
[1754543052783,20.43631489,3667.5,3667.4,0.4645]
[1754543054264,16.32131489,3667.5,3667.4,0.4645]
[1754543054465,20.43631489,3667.5,3667.4,0.4645]
[1754543058688,20.43631489,3667.5,3667.4,0.002]
[1754543058982,21.35951489,3667.5,3667.4,0.002]
[1754543060555,20.90301489,3667.5,3667.4,0.002]
[1754543060884,20.43631489,3667.5,3667.4,0.002]
[1754543061386,20.43631489,3667.5,3667.4,0.4928]
[1754543064902,20.43631489,3667.5,3667.4,0.002]
[1754543066766,20.43731489,3667.5,3667.4,0.002]
[1754543072933,7.317,3667.5,3667.4,0.929]
[1754543073512,11.982,3667.5,3667.4,3.65572738]
[1754543073713,14.982,3667.5,3667.4,0.929]
[1754543073897,14.982,3667.5,3667.4,3.65572738]
[1754543074916,14.981,3667.5,3667.4,3.65572738]
[1754543077001,14.295,3667.5,3667.4,3.65572738]
[1754543077319,14.295,3667.5,3667.4,4.29418672]
[1754543077683,11.295,3667.5,3667.4,4.29418672]
[1754543078302,4.115,3667.5,3667.4,4.29418672]
[1754543082514,0.001,3667.5,3667.4,4.29418672]
[1754543082819,4.115,3667.5,3667.4,4.29418672]
[1754543088020,0.001,3667.5,3667.4,4.29418672]
[1754543089039,1e-08,3667.5,3667.4,4.45745399]
[1754543089337,1e-08,3667.5,3667.4,4.53944672]
[1754543089644,1e-08,3667.5,3667.4,4.56671399]
[1754543089994,1e-08,3667.9,3667.8,2.72643001]
[1754543090337,1e-08,3667.9,3667.8,12.65179631]
[1754543090507,1e-08,3667.9,3667.8,13.57679631]
[1754543090704,1e-08,3667.9,3667.8,13.71279631]
[1754543091048,0.001,3668.3,3667.8,17.82579631]
[1754543091346,0.001,3668.3,3668.2,12.378856]
[1754543091490,1e-08,3668.3,3668.2,12.378856]
[1754543091695,1e-08,3668.3,3668.2,12.514856]
[1754543091891,1e-08,3668.3,3668.2,13.439856]
[1754543093940,1e-08,3668.3,3668.2,16.439856]
[1754543098731,1e-08,3668.3,3668.2,13.439856]
[1754543101828,1e-08,3668.3,3668.2,12.984356]
[1754543102903,1e-08,3668.3,3668.2,6.9741327]
[1754543103093,0.44650001,3668.3,3668.2,6.9741327]
[1754543103302,1e-08,3668.3,3668.2,6.9741327]
[1754543103597,1e-08,3668.3,3668.2,7.4436327]
[1754543111341,1e-08,3668.3,3668.2,7.8991327]
[1754543111544,1e-08,3668.3,3668.2,7.4436327]